[Event "EWIBCC 2019"]
[Site "Monte-Carlo"]
[Date "2019.11.29"]
[Round "13.17"]
[White "Petrova, Irina"]
[Black "Buksa, Nataliya"]
[Result "0-1"]
[ECO "D02"]
[WhiteElo "2109"]
[BlackElo "2410"]
[Annotator "NA"]
[PlyCount "108"]
[EventDate "2019.11.29"]
[EventType "swiss"]
[EventCountry "MNC"]
[SourceTitle "playchess.com"]
[Source "ChessBase"]
[SourceQuality "1"]
[TimeControl "180+2"]

1. d4 d5 2. Bf4 {[%emt 0:00:01]} Nf6 {[%emt 0:00:00]} 3. e3 {[%emt 0:00:01]} e6 {[%emt 0:00:00]} 4. c3 {[%emt 0:00:03]} Bd6 {[%emt 0:00:00]} 5. Bg3 {[%emt 0:00:05]} c5 {[%emt 0:00:01]} 6. Nd2 {[%emt 0:00:02]} Qc7 {[%emt 0:00:00]} 7. Ngf3 {[%emt 0:00:03]} O-O {[%emt 0:00:01]} 8. Bd3 {[%emt 0:00:03]} Nbd7 {[%emt 0:00:02]} 9. O-O {[%emt 0:00:04]} c4 {[%emt 0:00:05]} 10. Bc2 {[%emt 0:00:01]} b5 {[%emt 0:00:00]} 11. e4 {[%emt 0:00:03]} dxe4 {[%emt 0:00:03]} 12. Nxe4 {[%emt 0:00:01]} Nxe4 {[%emt 0:00:01]} 13. Bxe4 {[%emt 0:02:59]} Rb8 {[%emt 0:00:00]} 14. Re1 {[%emt 0:00:00]} Bb7 {[%emt 0:00:01]} 15. Bxb7 {[%emt 0:00:00]} Rxb7 {[%emt 0:00:01]} 16. Qe2 {[%emt 0:00:00]} Bxg3 {[%emt 0:00:03]} 17. hxg3 {[%emt 0:00:00]} b4 {[%emt 0:00:03]} 18. Ne5 {[%emt 0:00:00]} Nxe5 {[%emt 0:00:06]} 19. Qxe5 {[%emt 0:00:00]} bxc3 {[%emt 0:00:10]} 20. bxc3 {[%emt 0:00:00]} Rfb8 {[%emt 0:00:01]} 21. d5 {[%emt 0:00:00]} Qxe5 {[%emt 0:00:11]} 22. Rxe5 {[%emt 0:00:00]} exd5 {[%emt 0:00:01]} 23. Rxd5 {[%emt 0:00:00]} g6 {[%emt 0:00:09]} 24. Rc5 {[%emt 0:00:00]} Rb1+ {[%emt 0:00:01]} 25. Rxb1 {[%emt 0:00:00]} Rxb1+ {[%emt 0:00:01]} 26. Kh2 {[%emt 0:00:00]} Rb2 {[%emt 0:00:01]} 27. Kg1 {[%emt 0:00:00]} Rxa2 {[%emt 0:00:04]} 28. Rxc4 {[%emt 0:00:00]} Ra1+ {[%emt 0:00:01]} 29. Kh2 {[%emt 0:00:00]} Kg7 {[%emt 0:00:01]} 30. Rc7 {[%emt 0:00:00]} a5 {[%emt 0:00:02]} 31. c4 {[%emt 0:00:00]} Kf6 {[%emt 0:00:08]} 32. g4 {[%emt 0:00:00]} Ke6 {[%emt 0:00:01]} 33. c5 {[%emt 0:00:00]} a4 {[%emt 0:00:01]} 34. Ra7 {[%emt 0:00:00]} h6 {[%emt 0:00:20]} 35. c6 {[%emt 0:00:00]} f6 {[%emt 0:00:07]} 36. c7 {[%emt 0:00:00]} Kd7 {[%emt 0:00:00]} 37. Ra6 {[%emt 0:00:00]} Kxc7 {[%emt 0:00:09]} 38. Rxf6 {[%emt 0:00:00]} Kb7 {[%emt 0:00:00]} 39. Rxg6 {[%emt 0:00:04]} a3 {[%emt 0:00:01]} 40. Rg7+ {[%emt 0:00:16]} Kb6 {[%emt 0:00:00]} 41. Rg6+ Kb7 42. Rg7+ {[%emt 0:00:02]} Kb6 {[%emt 0:00:06]} 43. Rg6+ {[%emt 0:00:01]} Kb5 {[%emt 0:00:00]} 44. Rg8 {[%emt 0:00:07]} Rd1 {[%emt 0:00:05]} 45. Ra8 {[%emt 0:00:03]} Kb4 {[%emt 0:00:02]} 46. Rb8+ {[%emt 0:00:04]} Kc3 {[%emt 0:00:01]} 47. Rc8+ {[%emt 0:00:02]} Kb2 {[%emt 0:00:01]} 48. f4 {[%emt 0:00:04]} a2 {[%emt 0:00:01]} 49. Ra8 {[%emt 0:00:01]} a1=Q {[%emt 0:00:04]} 50. Rxa1 {[%emt 0:00:02]} Rxa1 {[%emt 0:00:01]} 51. Kg3 {[%emt 0:00:06]} Kc3 {[%emt 0:00:01]} 52. g5 {[%emt 0:00:01]} hxg5 {[%emt 0:00:02]} 53. fxg5 {[%emt 0:00:01]} Kd4 {[%emt 0:00:01]} 54. Kg4 {[%emt 0:00:01]} Ke5 {[%emt 0:00:00]} 0-1

[Event "EWIBCC 2019"]
[Site "Monte-Carlo"]
[Date "2019.11.29"]
[Round "13.18"]
[White "Chigaeva, Anastasia"]
[Black "Girya, Olga"]
[Result "0-1"]
[ECO "D11"]
[WhiteElo "2156"]
[BlackElo "2476"]
[Annotator "ChessBase"]
[PlyCount "57"]
[EventDate "2019.11.29"]
[EventType "swiss"]
[EventCountry "MNC"]
[SourceTitle "playchess.com"]
[Source "ChessBase"]
[SourceQuality "1"]
[TimeControl "180+2"]

1. d4 {[%emt 0:00:00]} d5 {[%emt 0:00:00]} 2. c4 {[%emt 0:00:00]} c6 {[%emt 0:00:00]} 3. Nf3 {[%emt 0:00:02]} Nf6 {[%emt 0:00:00]} 4. Nbd2 {[%emt 0:00:01]} Bf5 {[%emt 0:00:11]} 5. Nh4 {[%emt 0:00:08]} Be4 {[%emt 0:00:05]} 6. e3 {[%emt 0:00:21]} e6 {[%emt 0:00:13]} 7. b3 {[%emt 0:00:27]} Bb4 {[%emt 0:00:10]} 8. Bb2 {[%emt 0:00:02]} h6 {[%emt 0:00:27]} 9. a3 {[%emt 0:00:13]} Be7 {[%emt 0:00:04]} 10. Nxe4 {[%emt 0:00:10]} dxe4 {[%emt 0:00:08]} 11. g3 {[%emt 0:00:04]} Nbd7 {[%emt 0:00:04]} 12. Ng2 {[%emt 0:00:15]} g5 {[%emt 0:00:11]} 13. h4 {[%emt 0:00:09]} Rg8 {[%emt 0:00:03]} 14. hxg5 {[%emt 0:00:05]} hxg5 {[%emt 0:00:01]} 15. Qc2 {[%emt 0:00:08]} Qc7 {[%emt 0:00:12]} 16. O-O-O {[%emt 0:00:10]} O-O-O {[%emt 0:00:03]} 17. Ne1 {[%emt 0:00:10]} Rh8 {[%emt 0:00:08]} 18. Bg2 {[%emt 0:00:04]} Qa5 {[%emt 0:00:19]} 19. b4 {[%emt 0:00:15]} Qf5 {[%emt 0:00:01]} 20. Kb1 {[%emt 0:00:35]} Kb8 {[%emt 0:00:10]} 21. Ka2 {[%emt 0:00:09]} Nb6 {[%emt 0:00:05]} 22. Rc1 {[%emt 0:00:06]} Rxh1 {[%emt 0:00:26]} 23. Bxh1 {[%emt 0:00:01]} Rh8 {[%emt 0:00:01]} 24. Bg2 {[%emt 0:00:08]} Rh2 {[%emt 0:00:01]} 25. Qe2 {[%emt 0:00:02]} Qg4 {[%emt 0:00:19]} 26. Qxg4 {[%emt 0:00:03]} Nxg4 {[%emt 0:00:01]} 27. Bxe4 {[%emt 0:00:02]} Rxf2 {[%emt 0:00:04]} 28. Nc2 {[%emt 0:00:02]} Nxc4 {[%emt 0:00:02]} 29. Bd3 {[%emt 0:00:06]} 0-1

[Event "EWIBCC 2019"]
[Site "Monte-Carlo"]
[Date "2019.11.29"]
[Round "13.19"]
[White "Solozhenkina, Elizaveta"]
[Black "Dornbusch, Tatiana"]
[Result "1-0"]
[ECO "B50"]
[WhiteElo "2314"]
[BlackElo "2269"]
[Annotator "NA"]
[PlyCount "133"]
[EventDate "2019.11.29"]
[EventType "swiss"]
[EventCountry "MNC"]
[SourceTitle "playchess.com"]
[Source "ChessBase"]
[SourceQuality "1"]
[TimeControl "180+2"]

1. Nf3 {[%emt 0:00:00]} Nf6 {[%emt 0:00:00]} 2. g3 {[%emt 0:00:00]} g6 {[%emt 0:00:00]} 3. d4 {[%emt 0:00:01]} c5 {[%emt 0:00:01]} 4. c3 {[%emt 0:00:01]} Bg7 {[%emt 0:00:03]} 5. Bg2 {[%emt 0:00:01]} O-O {[%emt 0:00:02]} 6. O-O {[%emt 0:00:03]} d6 {[%emt 0:00:01]} 7. Re1 {[%emt 0:00:03]} Nc6 {[%emt 0:00:07]} 8. e4 {[%emt 0:00:21]} Bg4 {[%emt 0:00:23]} 9. h3 {[%emt 0:00:35]} Bxf3 {[%emt 0:00:02]} 10. Bxf3 {[%emt 0:00:02]} cxd4 {[%emt 0:00:04]} 11. cxd4 {[%emt 0:00:00]} e5 {[%emt 0:00:01]} 12. dxe5 {[%emt 0:00:10]} dxe5 {[%emt 0:00:03]} 13. Nc3 {[%emt 0:00:03]} Nd4 {[%emt 0:00:04]} 14. Bg2 {[%emt 0:00:01]} Qb6 {[%emt 0:00:17]} 15. Qa4 {[%emt 0:01:00]} Rac8 {[%emt 0:00:10]} 16. Bg5 {[%emt 0:00:11]} h6 {[%emt 0:00:41]} 17. Bxf6 {[%emt 0:00:04]} Qxf6 {[%emt 0:00:07]} 18. Nd5 {[%emt 0:00:05]} Qe6 {[%emt 0:00:08]} 19. Rad1 {[%emt 0:00:13]} a6 {[%emt 0:00:07]} 20. Re3 {[%emt 0:00:16]} b5 {[%emt 0:00:12]} 21. Qa5 {[%emt 0:00:01]} Rc2 {[%emt 0:00:07]} 22. Ra3 {[%emt 0:00:13]} Rxb2 {[%emt 0:00:12]} 23. Qxa6 {[%emt 0:00:02]} Qxa6 {[%emt 0:00:13]} 24. Rxa6 {[%emt 0:00:02]} Kh8 {[%emt 0:00:16]} 25. Ra7 {[%emt 0:00:01]} f5 {[%emt 0:00:04]} 26. exf5 {[%emt 0:00:11]} gxf5 {[%emt 0:00:02]} 27. Ne7 {[%emt 0:00:07]} Kh7 {[%emt 0:00:01]} 28. Bd5 {[%emt 0:00:01]} Ne2+ {[%emt 0:00:10]} 29. Kf1 {[%emt 0:00:06]} Nc3 {[%emt 0:00:02]} 30. Rd3 {[%emt 0:00:01]} Nxd5 {[%emt 0:00:05]} 31. Rxd5 {[%emt 0:00:01]} f4 {[%emt 0:00:03]} 32. Rdd7 {[%emt 0:00:02]} Rf7 {[%emt 0:00:03]} 33. Nf5 {[%emt 0:00:02]} Rxf5 {[%emt 0:00:04]} 34. Rxg7+ {[%emt 0:00:01]} Kh8 {[%emt 0:00:01]} 35. Rh7+ {[%emt 0:00:04]} Kg8 {[%emt 0:00:01]} 36. Rhg7+ {[%emt 0:00:01]} Kf8 {[%emt 0:00:01]} 37. Rgd7 {[%emt 0:00:01]} Kg8 {[%emt 0:00:04]} 38. Rg7+ {[%emt 0:00:03]} Kf8 {[%emt 0:00:01]} 39. Rgd7 {[%emt 0:00:01]} Kg8 {[%emt 0:00:01]} 40. Rg7+ {[%emt 0:00:02]} Kf8 {[%emt 0:00:01]} 41. Rh7 {[%emt 0:00:03]} Kg8 {[%emt 0:00:04]} 42. Rag7+ {[%emt 0:00:01]} Kf8 {[%emt 0:00:01]} 43. Rb7 {[%emt 0:00:02]} Kg8 {[%emt 0:00:09]} 44. Rhd7 {[%emt 0:00:03]} fxg3 {[%emt 0:00:04]} 45. Rd8+ {[%emt 0:00:03]} Rf8 {[%emt 0:00:01]} 46. Rxf8+ Kxf8 {[%emt 0:00:00]} 47. fxg3 {[%emt 0:00:01]} e4 {[%emt 0:00:07]} 48. Rh7 {[%emt 0:00:04]} e3 {[%emt 0:00:01]} 49. Rxh6 {[%emt 0:00:03]} Rxa2 {[%emt 0:00:01]} 50. Re6 {[%emt 0:00:01]} Ra3 {[%emt 0:00:01]} 51. Ke2 {[%emt 0:00:01]} b4 {[%emt 0:00:02]} 52. Rxe3 {[%emt 0:00:02]} Ra2+ {[%emt 0:00:01]} 53. Kf3 {[%emt 0:00:02]} Rb2 {[%emt 0:00:01]} 54. Re6 {[%emt 0:00:03]} Kf7 {[%emt 0:00:01]} 55. Rb6 {[%emt 0:00:00]} b3 {[%emt 0:00:01]} 56. Kg4 {[%emt 0:00:01]} Kg7 {[%emt 0:00:02]} 57. h4 {[%emt 0:00:01]} Rb1 {[%emt 0:00:01]} 58. Kg5 {[%emt 0:00:01]} b2 {[%emt 0:00:01]} 59. g4 {[%emt 0:00:01]} Kh7 {[%emt 0:00:01]} 60. Rb7+ {[%emt 0:00:01]} Kg8 {[%emt 0:00:01]} 61. Kg6 {[%emt 0:00:02]} Kf8 {[%emt 0:00:01]} 62. Kg5 {[%emt 0:00:04]} Kg8 {[%emt 0:00:05]} 63. h5 {[%emt 0:00:01]} Kf8 {[%emt 0:00:06]} 64. h6 {[%emt 0:00:04]} Kg8 {[%emt 0:00:05]} 65. Kg6 {[%emt 0:00:02]} Kf8 {[%emt 0:00:04]} 66. g5 {[%emt 0:00:02]} Kg8 {[%emt 0:00:05]} 67. Rb8# {[%emt 0:00:12]} 1-0

[Event "EWIBCC 2019"]
[Site "Monte-Carlo"]
[Date "2019.11.29"]
[Round "13.20"]
[White "Worek, Joanna"]
[Black "Novkovic, Julia"]
[Result "1-0"]
[ECO "C45"]
[WhiteElo "2316"]
[BlackElo "2161"]
[Annotator "NA"]
[PlyCount "69"]
[EventDate "2019.11.29"]
[EventType "swiss"]
[EventCountry "MNC"]
[SourceTitle "playchess.com"]
[Source "ChessBase"]
[SourceQuality "1"]
[TimeControl "180+2"]

1. e4 {[%emt 0:00:00]} e5 {[%emt 0:00:00]} 2. Nf3 {[%emt 0:03:04]} Nc6 3. d4 {[%emt 0:00:00]} exd4 {[%emt 0:00:04]} 4. Nxd4 {[%emt 0:00:00]} Nf6 {[%emt 0:00:01]} 5. Nxc6 {[%emt 0:00:00]} bxc6 {[%emt 0:00:02]} 6. Qe2 {[%emt 0:00:00]} a5 {[%emt 0:00:03]} 7. Nc3 {[%emt 0:00:00]} Ba6 {[%emt 0:00:07]} 8. Qe3 {[%emt 0:00:00]} Bxf1 {[%emt 0:00:02]} 9. Rxf1 {[%emt 0:00:00]} Bb4 {[%emt 0:00:43]} 10. Bd2 {[%emt 0:00:00]} Qe7 {[%emt 0:00:02]} 11. O-O-O {[%emt 0:00:00]} Rb8 {[%emt 0:00:16]} 12. g4 {[%emt 0:00:00]} O-O {[%emt 0:00:30]} 13. g5 {[%emt 0:00:00]} Ne8 {[%emt 0:00:24]} 14. e5 {[%emt 0:00:00]} d6 {[%emt 0:00:08]} 15. f4 {[%emt 0:00:00]} g6 {[%emt 0:00:22]} 16. h4 {[%emt 0:00:00]} Ng7 {[%emt 0:00:05]} 17. h5 {[%emt 0:00:00]} Nf5 {[%emt 0:00:03]} 18. Qd3 {[%emt 0:00:02]} dxe5 {[%emt 0:00:06]} 19. Ne4 {[%emt 0:00:02]} Bxd2+ {[%emt 0:00:09]} 20. Rxd2 {[%emt 0:00:04]} exf4 {[%emt 0:00:16]} 21. Nf6+ {[%emt 0:00:01]} Kh8 {[%emt 0:00:03]} 22. hxg6 {[%emt 0:00:01]} fxg6 {[%emt 0:00:02]} 23. Rh1 {[%emt 0:00:02]} Rxf6 {[%emt 0:00:04]} 24. gxf6 {[%emt 0:00:02]} Qxf6 {[%emt 0:00:00]} 25. c3 {[%emt 0:00:02]} Nd6 {[%emt 0:00:09]} 26. Rdh2 {[%emt 0:00:02]} h5 {[%emt 0:00:04]} 27. Rg1 {[%emt 0:00:03]} Rg8 {[%emt 0:00:02]} 28. Qf3 {[%emt 0:00:03]} Qf5 {[%emt 0:00:05]} 29. Rhg2 {[%emt 0:00:03]} Kh7 {[%emt 0:00:01]} 30. Rg5 {[%emt 0:00:01]} Qe4 {[%emt 0:00:01]} 31. Rxh5+ {[%emt 0:00:02]} Kg7 {[%emt 0:00:03]} 32. Qh3 {[%emt 0:00:11]} Nf5 {[%emt 0:00:07]} 33. Rxf5 {[%emt 0:00:01]} Qe3+ {[%emt 0:00:00]} 34. Qxe3 {[%emt 0:00:02]} fxe3 {[%emt 0:00:00]} 35. Re5 {[%emt 0:00:01]} 1-0